bitfinex-derivatives/quotes_ETHF0:USTF0_20241020
["timestamp","ask_amount","ask_price","bid_price","bid_amount"]
[1729416841098,0.8082,2648.5,2648.4,0.7854]
[1729416841409,0.8082,2648.5,2648.4,0.4078]
[1729416841601,1.2351,2648.5,2648.4,2.13438476]
[1729416841807,1.61269,2648.5,2648.4,3.12175294]
[1729416842106,0.8082,2648.5,2648.4,2.51198476]
[1729416843806,0.8082,2648.5,2648.4,2.51192267]
[1729416844902,0.8082,2648.5,2648.4,3.99361887]
[1729416845100,0.8082,2648.5,2648.4,2.51192267]
[1729416845300,0.8082,2648.5,2648.4,3.99361887]
[1729416845512,0.8082,2648.5,2648.4,2.51192267]
[1729416845808,0.8082,2648.5,2648.4,3.99361887]
[1729416846712,0.3902,2648.5,2648.4,3.99361887]
[1729416847404,0.37756,2648.7,2648.5,0.37758]
[1729416847600,0.37756,2648.7,2648.5,1.36484386]
[1729416848407,3.97885,2648.8,2648.5,1.36484386]
[1729416849008,3.6013,2648.8,2648.5,0.98726386]
[1729416849215,3.6013,2648.8,2648.7,0.37756]
[1729416849713,3.6013,2648.8,2648.7,0.78496]
[1729416849907,3.6013,2648.8,2648.7,1.77222386]
[1729416850210,3.6013,2648.8,2648.7,0.78496]
[1729416850812,3.2078,2648.8,2648.7,0.78496]
[1729416851405,3.2078,2648.8,2648.7,1.77222386]
[1729416853116,0.8127,2648.9,2648.7,1.77222386]
[1729416854615,1.19023,2648.9,2648.7,1.77222386]
[1729416854822,0.8127,2648.9,2648.7,1.77222386]
[1729416856108,1.19024,2648.9,2648.7,0.4074]
[1729416856406,1.19024,2648.9,2648.7,1.39466386]
[1729416856812,1.19024,2648.9,2648.7,0.78496]
[1729416858522,0.8127,2648.9,2648.7,0.78496]
[1729416861407,0.8127,2648.9,2648.8,0.76769087]
[1729416861613,0.8127,2648.9,2648.8,1.14523087]
[1729416862314,0.8127,2648.9,2648.8,0.76769087]
[1729416868318,0.8127,2648.9,2648.8,2.13249473]
[1729416868518,0.8127,2648.9,2648.8,1.75495473]
[1729416869423,0.8127,2648.9,2648.8,2.13249473]
[1729416869715,0.8127,2648.9,2648.8,3.86016148]
[1729416869920,0.8127,2648.9,2648.8,2.87289762]
[1729416870125,0.8127,2648.9,2648.8,4.35459382]
[1729416871825,0.8127,2648.9,2648.8,1.14523087]
[1729416878824,0.8127,2648.9,2648.8,4.35536681]
[1729416881732,1.19023,2648.9,2648.8,3.97782681]
[1729416883235,1.19023,2648.9,2648.8,2.49613061]
[1729416883530,1.19023,2648.9,2648.8,3.97782681]
[1729416884028,1.19023,2648.9,2648.8,2.49613061]
[1729416884334,0.8127,2648.9,2648.8,2.49613061]
[1729416884633,0.8127,2648.9,2648.8,2.87367061]
[1729416884835,0.8127,2648.9,2648.8,4.35536681]
[1729416885131,1.19023,2648.9,2648.8,2.87367061]
[1729416885328,1.19023,2648.9,2648.8,3.97782681]
[1729416885533,0.8127,2648.9,2648.8,4.35536681]
[1729416886825,0.8127,2648.9,2648.8,1.14523087]
[1729416887936,0.8127,2648.9,2648.8,0.76769087]
[1729416888233,1.59173,2648.9,2648.8,0.76769087]
[1729416889536,1.2142,2648.9,2648.8,1.14523087]
[1729416890328,1.59173,2648.9,2648.8,0.76769087]
[1729416894028,1.2142,2648.9,2648.8,3.98537254]
[1729416894226,0.8127,2648.9,2648.8,2.50367634]
[1729416894436,1.19023,2648.9,2648.8,2.50367634]
[1729416899133,8.17323,2648.9,2648.8,3.49296688]
[1729416899332,8.17323,2648.9,2648.8,2.50367634]
[1729416899528,8.17323,2648.9,2648.8,3.49276973]
[1729416900135,4.39803,2648.9,2648.8,3.49276973]
[1729416900440,4.39803,2648.9,2648.8,2.50367634]
[1729416900732,4.39803,2648.9,2648.8,3.98739344]
[1729416901035,4.39803,2648.9,2648.8,2.25140797]
[1729416901239,4.39803,2648.9,2648.8,3.98756432]
[1729416902042,1.19023,2648.9,2648.8,3.98756432]
[1729416904337,1.19023,2648.9,2648.8,2.50384722]
[1729416905144,0.8127,2648.9,2648.8,2.88138722]
[1729416905543,0.8127,2648.9,2648.8,2.8809566]
[1729416905844,0.37752,2649.0,2648.8,2.8809566]
[1729416906142,0.37752,2649.0,2648.9,3.2187402]
[1729416906344,0.37752,2649.0,2648.9,4.39513107]
[1729416907145,0.37752,2649.0,2648.9,2.9121166]
[1729416907339,0.37752,2649.0,2648.9,3.90084169]
[1729416907539,0.37752,2649.0,2648.9,2.9121166]
[1729416908938,0.37752,2649.0,2648.9,1.17639087]
[1729416909243,0.37752,2649.0,2648.9,0.76769087]
[1729416919551,0.37752,2649.0,2648.9,1.14522087]
[1729416919942,0.37752,2649.0,2648.9,0.76769087]
[1729416920551,0.37752,2649.0,2648.9,1.14522087]
[1729416921449,0.37752,2649.0,2648.9,4.36284965]
[1729416922445,0.37752,2649.0,2648.9,0.76769087]
[1729416923038,0.37752,2649.0,2648.9,1.14522087]
[1729416923450,0.37752,2649.0,2648.9,4.36289853]
[1729416924047,0.37752,2649.0,2648.9,3.30575135]
[1729416924252,0.37752,2649.0,2648.9,1.57062087]
[1729416925054,0.37751,2649.1,2648.9,1.57061087]
[1729416925459,0.37751,2649.1,2649.0,0.76769087]
[1729416925953,3.6267,2649.2,2649.0,0.76769087]
[1729416926147,3.2078,2649.2,2649.1,0.3775]
[1729416926448,3.2078,2649.2,2649.1,1.55659087]
[1729416928546,3.2078,2649.2,2649.1,2.34759087]
[1729416928751,0.7959,2649.5,2649.1,2.34759087]
[1729416928752,4.38115,2649.5,2649.3,0.37747]
[1729416929156,4.0037,2649.5,2649.4,0.4302]
[1729416929547,4.38114,2649.5,2649.4,1.19789087]
[1729416929854,1.17334,2649.5,2649.4,1.19789087]
[1729416933062,1.17334,2649.5,2649.4,1.57535087]
[1729416933264,0.7959,2649.5,2649.4,1.57535087]
[1729416933759,1.17334,2649.5,2649.4,1.19789087]
[1729416934362,0.7959,2649.5,2649.4,1.57535087]
[1729416934760,0.7959,2649.5,2649.4,1.19789087]
[1729416934963,1.17334,2649.5,2649.4,1.19789087]
[1729416936466,3.2078,2649.8,2649.4,1.19789087]
[1729416936667,0.37744,2649.5,2649.4,1.19789087]
[1729416937259,0.37743,2649.6,2649.4,1.57534087]
[1729416937767,0.37743,2649.6,2649.5,0.76769087]
[1729416939069,3.2078,2649.8,2649.5,4.54209087]
[1729416939265,3.2078,2649.8,2649.6,1.58243]
[1729416939468,3.58521,2649.8,2649.6,1.58243]
[1729416939766,3.2078,2649.8,2649.7,1.17429087]
[1729416940068,3.5852,2649.8,2649.7,1.17429087]
[1729416941376,3.2078,2649.8,2649.7,1.17429087]
[1729416941669,3.5852,2649.8,2649.7,1.17429087]
[1729416942767,3.2078,2649.8,2649.7,1.17429087]
[1729416943869,3.5852,2649.8,2649.7,1.17429087]
[1729416944466,3.2078,2649.8,2649.7,1.17429087]
[1729416944771,3.5852,2649.8,2649.7,1.17429087]
[1729416945367,0.3774,2649.8,2649.7,1.17429087]
[1729416966182,0.3774,2649.8,2649.7,0.76769087]
[1729416972297,4.0053,2650.0,2649.7,0.76769087]
[1729416972507,0.37739,2649.9,2649.8,0.4219]
[1729416972799,0.37739,2649.9,2649.8,1.18959087]
[1729416974423,0.37739,2649.9,2649.8,2.17449238]
[1729416976527,3.2078,2650.0,2649.8,2.17449238]
[1729416976726,3.2078,2650.0,2649.9,1.14507087]
[1729416977224,3.2078,2650.0,2649.9,1.53827087]
[1729416977731,3.2078,2650.0,2649.9,1.94327087]
[1729416977932,3.2078,2650.0,2649.9,5.71687087]
[1729416978174,4.007,2650.3,2649.9,5.33949087]
[1729416978329,0.37735,2650.2,2650.0,0.79]
[1729416978826,0.37735,2650.2,2650.1,1.17539087]
[1729416979644,4.007,2650.3,2650.1,1.17539087]
[1729416979840,4.38434,2650.3,2650.2,0.76769087]
[1729416985137,1.17654,2650.3,2650.2,0.76769087]
[1729416987142,1.60164,2650.3,2650.2,0.76769087]
[1729416996518,5.37524,2650.3,2650.2,0.76769087]
[1729416999721,8.58304,2650.3,2650.2,0.76769087]
[1729417003423,5.37524,2650.3,2650.2,0.76769087]
[1729417003725,8.58304,2650.3,2650.2,0.76769087]
[1729417003918,5.37524,2650.3,2650.2,0.76769087]
[1729417004117,8.58304,2650.3,2650.2,0.76769087]
[1729417006625,5.37524,2650.3,2650.2,0.76769087]
[1729417007020,8.58304,2650.3,2650.2,0.76769087]
[1729417007325,5.37524,2650.3,2650.2,0.76769087]
[1729417007525,1.60164,2650.3,2650.2,0.76769087]
[1729417007729,4.80944,2650.3,2650.2,0.76769087]
[1729417008619,1.60164,2650.3,2650.2,0.76769087]
[1729417008827,4.38434,2650.3,2650.2,0.76769087]
[1729417009734,1.17654,2650.3,2650.2,0.76769087]
[1729417010028,4.38434,2650.3,2650.2,0.76769087]
[1729417011330,4.38434,2650.3,2650.2,1.75252956]
[1729417011733,4.38434,2650.3,2650.2,3.48291717]
[1729417011925,4.38434,2650.3,2650.2,2.49807848]
[1729417013122,4.38434,2650.3,2650.2,3.97533652]
[1729417014433,4.38434,2650.3,2650.2,0.76769087]
[1729417014732,1.17654,2650.3,2650.2,0.76769087]
[1729417015128,4.38434,2650.3,2650.2,0.76769087]
[1729417015538,1.17654,2650.3,2650.2,0.76769087]
[1729417015740,4.38434,2650.3,2650.2,0.76769087]
[1729417016435,1.17654,2650.3,2650.2,0.76769087]
[1729417016634,4.38434,2650.3,2650.2,0.76769087]
[1729417016835,1.17654,2650.3,2650.2,0.76769087]
[1729417017340,4.38434,2650.3,2650.2,0.76769087]
[1729417019335,1.17654,2650.3,2650.2,0.76769087]
[1729417019536,4.38434,2650.3,2650.2,0.76769087]
[1729417020550,1.17654,2650.3,2650.2,0.76769087]
[1729417021046,4.38434,2650.3,2650.2,0.76769087]
[1729417021338,1.17654,2650.3,2650.2,0.76769087]
[1729417021541,1.17654,2650.3,2650.2,3.97648101]
[1729417021931,4.38434,2650.3,2650.2,3.97648101]
[1729417022738,1.17654,2650.3,2650.2,3.97648101]
[1729417023139,4.38434,2650.3,2650.2,3.97648101]
[1729417023443,4.38434,2650.3,2650.2,2.24494891]
[1729417023638,4.38434,2650.3,2650.2,3.97682104]
[1729417025239,1.17654,2650.3,2650.2,3.97682104]
[1729417025947,4.38434,2650.3,2650.2,3.97682104]
[1729417026444,4.38434,2650.3,2650.2,2.499563]
[1729417027836,1.17654,2650.3,2650.2,2.499563]
[1729417028037,4.38434,2650.3,2650.2,2.499563]
[1729417029543,4.38434,2650.3,2650.2,0.76769087]
[1729417029938,1.17654,2650.3,2650.2,0.76769087]
[1729417030138,4.38434,2650.3,2650.2,0.76769087]
[1729417030839,1.17654,2650.3,2650.2,0.76769087]
[1729417031041,3.58514,2650.3,2650.2,0.76769087]
[1729417032442,0.37734,2650.3,2650.2,0.76769087]
[1729417032739,3.58514,2650.3,2650.2,0.76769087]
[1729417033242,0.37734,2650.3,2650.2,0.76769087]
[1729417033441,3.58514,2650.3,2650.2,0.76769087]
[1729417036039,0.37734,2650.3,2650.2,0.76769087]
[1729417036240,3.58514,2650.3,2650.2,0.76769087]
[1729417036746,3.58514,2650.3,2650.2,7.93415697]
[1729417036946,3.58514,2650.3,2650.2,4.46963116]
[1729417037246,3.58514,2650.3,2650.2,7.93424927]
[1729417038341,3.58514,2650.3,2650.2,7.93414298]
[1729417040647,3.58514,2650.3,2650.2,7.93423534]
[1729417041842,0.37734,2650.3,2650.2,7.93423534]
[1729417042043,3.58514,2650.3,2650.2,7.93423534]
[1729417043252,0.37734,2650.3,2650.2,7.93423534]
[1729417043453,3.58514,2650.3,2650.2,7.93414157]
[1729417044353,0.37734,2650.3,2650.2,7.93414157]
[1729417044750,0.37734,2650.3,2650.2,0.76769087]
[1729417045253,3.58514,2650.3,2650.2,0.76769087]
[1729417046045,0.37734,2650.3,2650.2,0.76769087]
[1729417046240,3.58514,2650.3,2650.2,0.76769087]
[1729417049250,0.37734,2650.3,2650.2,0.76769087]
[1729417049554,3.58514,2650.3,2650.2,0.76769087]
[1729417051652,3.01880428,2650.3,2650.2,5.9642733]
[1729417051959,3.39614428,2650.3,2650.2,8.42637004]
[1729417052752,3.39614428,2650.3,2650.2,5.9642733]
[1729417053260,3.39614428,2650.3,2650.2,8.42637004]
[1729417053854,3.39614428,2650.3,2650.2,6.69186994]
[1729417054154,3.39614428,2650.3,2650.2,8.41945218]
[1729417054354,3.39614428,2650.3,2650.2,4.4709324]
[1729417054659,3.39614428,2650.3,2650.2,5.95771659]
[1729417054858,3.39614428,2650.3,2650.2,8.41981333]
[1729417056760,3.39614428,2650.3,2650.2,7.93111801]
[1729417058461,0.37734,2650.3,2650.2,7.93111801]
[1729417058653,3.58514,2650.3,2650.2,7.93111801]
[1729417058854,3.58514,2650.3,2650.2,7.93271206]
[1729417059566,0.37734,2650.3,2650.2,7.93271206]
[1729417060358,0.37733,2650.3,2650.2,9.73291064]
[1729417060559,0.37733,2650.3,2650.2,12.19500738]
[1729417060749,0.37733,2650.3,2650.2,9.85089204]
[1729417061559,0.37733,2650.3,2650.2,9.85089017]
[1729417061761,0.37733,2650.3,2650.2,9.73291064]
[1729417062266,0.37733,2650.3,2650.2,5.95931064]
[1729417062665,0.37733,2650.3,2650.2,9.73291064]
[1729417063369,0.37733,2650.3,2650.2,5.95931064]
[1729417063572,0.37732,2650.4,2650.2,12.57612622]
[1729417063768,0.37732,2650.4,2650.3,5.95678622]
[1729417066071,0.37732,2650.4,2650.3,6.72301622]
[1729417066274,0.37732,2650.4,2650.3,8.8115618]
[1729417066571,0.37731,2650.5,2650.3,12.9614305]
[1729417066767,0.37731,2650.5,2650.4,2.71573109]
[1729417066969,0.37731,2650.5,2650.4,7.64542196]
[1729417067270,0.37731,2650.5,2650.4,7.64541923]
[1729417068470,0.37731,2650.5,2650.4,5.91580455]
[1729417068666,0.37731,2650.5,2650.4,7.64492904]
[1729417068873,0.37731,2650.5,2650.4,8.43492904]
[1729417069076,0.37731,2650.5,2650.4,8.43477645]
[1729417069477,0.37731,2650.5,2650.4,6.70580455]
[1729417070169,0.37729,2650.7,2650.5,0.3773]
[1729417070469,0.37729,2650.7,2650.5,1.36341368]
[1729417070674,0.37729,2650.6,2650.5,1.36341368]
[1729417070874,0.37729,2650.6,2650.5,2.13110455]
[1729417071074,0.37729,2650.6,2650.5,1.75380455]
[1729417073677,0.37729,2650.6,2650.5,0.76769087]
[1729417074175,0.37729,2650.6,2650.5,1.75380455]
[1729417074475,0.37729,2650.6,2650.5,0.76769087]
[1729417074674,0.37729,2650.6,2650.5,2.49562991]
[1729417074870,0.7879,2650.8,2650.5,2.49562991]
[1729417075073,0.37728,2650.7,2650.6,3.2058863]
[1729417075879,0.37728,2650.7,2650.6,3.97357717]
[1729417078478,0.37728,2650.7,2650.6,3.97288281]
[1729417080384,0.37728,2650.7,2650.6,2.49493555]
[1729417081780,0.37728,2650.7,2650.6,4.46716838]
[1729417083569,0.37728,2650.7,2650.6,2.49493555]
[1729417084178,0.37728,2650.7,2650.6,4.46716838]
[1729417084577,0.37728,2650.7,2650.6,2.49416388]
[1729417085184,0.37728,2650.7,2650.6,4.46639671]
[1729417085385,0.37728,2650.7,2650.6,2.49416388]
[1729417086886,0.37728,2650.7,2650.6,2.49400934]
[1729417088585,0.7879,2650.8,2650.6,2.87128934]
[1729417088889,1.16516,2650.8,2650.6,0.37728]
[1729417089082,1.16516,2650.8,2650.7,1.16799087]
[1729417090585,0.7879,2650.8,2650.7,1.16799087]
[1729417090893,1.16516,2650.8,2650.7,1.16799087]
[1729417091278,0.7879,2650.8,2650.7,1.54526087]
[1729417092087,0.37725,2650.9,2650.7,1.54526087]
[1729417092690,0.8156,2651.1,2650.7,1.54526087]
[1729417092984,0.37724,2651.0,2650.9,0.76769087]
[1729417093786,0.37724,2651.0,2650.9,1.55769087]
[1729417096183,0.8156,2651.1,2650.9,1.93492087]
[1729417096492,1.19282,2651.1,2650.9,1.93492087]
[1729417096685,1.19282,2651.1,2651.0,0.3971]
[1729417096890,1.19282,2651.1,2651.0,3.59796903]
[1729417097091,1.19282,2651.1,2651.0,4.3656599]
[1729417100900,1.19282,2651.1,2651.0,2.14800108]
[1729417101395,1.19282,2651.1,2651.0,3.872392]
[1729417102086,1.19282,2651.1,2651.0,2.14800108]
[1729417102294,1.19282,2651.1,2651.0,3.87242684]
[1729417103895,1.19282,2651.1,2651.0,1.16479087]
[1729417110300,1.19282,2651.1,2651.0,0.76769087]
[1729417110903,1.59842,2651.1,2651.0,0.76769087]
[1729417111991,1.59842,2651.1,2651.0,3.50581013]
[1729417112390,1.59842,2651.1,2651.0,1.75090108]
[1729417112596,1.59842,2651.1,2651.0,3.50595225]
[1729417113903,1.59842,2651.1,2651.0,2.52274204]
[1729417114707,1.59842,2651.1,2651.0,3.99899953]
[1729417114908,1.59842,2651.1,2651.0,2.52274204]
[1729417115104,1.59842,2651.1,2651.0,3.99899953]
[1729417116804,1.59842,2651.1,2651.0,2.52274204]
[1729417117100,1.59842,2651.1,2651.0,3.99899953]
[1729417117297,1.59842,2651.1,2651.0,3.507259]
[1729417117498,1.19282,2651.1,2651.0,3.507259]
[1729417117809,1.19282,2651.1,2651.0,3.99899953]
[1729417118998,1.19282,2651.1,2651.0,0.76769087]
[1729417126912,1.19282,2651.1,2651.0,4.49721632]
[1729417127908,0.62666103,2651.1,2651.0,4.49721632]
[1729417128111,0.62666103,2651.1,2651.0,2.52498349]
[1729417128310,0.62666103,2651.1,2651.0,4.49721632]
[1729417129510,0.62666103,2651.1,2651.0,8.00790496]
[1729417130116,0.62666103,2651.1,2651.0,8.00791585]
[1729417130811,0.62666103,2651.1,2651.0,8.00834422]
[1729417131008,0.62666103,2651.1,2651.0,4.4955305]
[1729417131516,0.62666103,2651.1,2651.0,8.00661776]
[1729417133407,0.62666103,2651.1,2651.0,8.00637908]
[1729417133612,0.62666103,2651.1,2651.0,6.03438493]
[1729417134207,0.62666103,2651.1,2651.0,0.76769087]
[1729417135602,4.39866103,2651.1,2651.0,0.76769087]
[1729417138215,0.62666103,2651.1,2651.0,0.76769087]
[1729417140712,4.39866103,2651.1,2651.0,0.76769087]
[1729417142310,4.39866103,2651.1,2651.0,4.00319818]
[1729417142511,7.60646103,2651.1,2651.0,4.00319818]
[1729417144319,7.60646103,2651.1,2651.0,2.24693695]
[1729417144528,7.60646103,2651.1,2651.0,4.00307647]
[1729417148525,4.39866103,2651.1,2651.0,4.00307647]
[1729417149119,4.39866103,2651.1,2651.0,3.50982712]
[1729417149416,7.60646103,2651.1,2651.0,3.50958365]
[1729417149816,7.60646103,2651.1,2651.0,1.7536876]
[1729417150024,7.60646103,2651.1,2651.0,3.5095665]
[1729417150224,7.60646103,2651.1,2651.0,1.7536876]
[1729417150420,7.60646103,2651.1,2651.0,3.50954871]
[1729417150621,7.60646103,2651.1,2651.0,1.7536876]
[1729417151317,7.60646103,2651.1,2651.0,0.76769087]
[1729417152127,7.60646103,2651.1,2651.0,0.48887564]
[1729417152518,7.22924103,2651.1,2650.6,0.98599673]
[1729417152719,3.58507,2650.7,2650.6,0.98599673]
[1729417154423,3.58507,2650.7,2650.5,0.4137]
[1729417154424,3.2078,2650.7,2650.5,1.39969673]
[1729417154617,0.37729,2650.6,2650.5,1.39969673]
[1729417154824,0.77969,2650.6,2650.5,1.39969673]
[1729417155315,0.77969,2650.6,2650.4,1.47924608]
[1729417155316,0.3773,2650.5,2650.4,0.98599673]
[1729417155520,0.3773,2650.5,2650.3,1.47924608]
[1729417155521,0.37732,2650.4,2650.3,1.38779673]
[1729417155716,3.58512,2650.4,2650.3,1.38779673]
[1729417156422,6.9806,2650.4,2650.1,0.98599673]
[1729417156631,0.37734,2650.2,2650.1,0.4018]
[1729417157226,0.77794,2650.2,2650.1,0.4018]
[1729417159027,0.77794,2650.2,2649.4,0.98599673]
[1729417159028,0.37744,2649.5,2649.4,0.98599673]
[1729417159229,0.37744,2649.5,2649.4,0.8526]
[1729417159427,0.37744,2649.5,2649.4,1.253]
[1729417187944,3.6159,2649.8,2649.4,1.253]
[1729417188744,0.37744,2649.5,2649.4,1.253]
[1729417200665,0.37744,2649.5,2649.4,3.98969007]
[1729417200847,0.37744,2649.6,2649.4,4.85790463]
[1729417201043,0.37742,2649.7,2649.5,7.37929463]
[1729417201345,0.37742,2649.7,2649.6,3.22745463]
[1729417201546,0.37742,2649.7,2649.6,1.75516096]
[1729417201742,0.37742,2649.7,2649.6,7.00986296]
[1729417202358,0.37742,2649.7,2649.6,11.00354126]
[1729417202558,0.37742,2649.7,2649.6,9.04048303]
[1729417203357,0.37742,2649.7,2649.6,5.26608303]
[1729417203559,0.37742,2649.7,2649.6,7.71990582]
[1729417207459,0.37742,2649.7,2649.6,5.26608303]
[1729417207758,0.37742,2649.7,2649.6,7.71990582]
[1729417209360,0.37742,2649.7,2649.6,3.23631056]
[1729417210064,0.37741,2649.8,2649.6,3.23631056]
[1729417210356,0.37741,2649.8,2649.7,1.41208947]
[1729417210560,0.37741,2649.8,2649.7,1.83168947]
[1729417213666,0.37741,2649.8,2649.7,3.60543541]
[1729417213864,0.37741,2649.8,2649.7,1.83168947]
[1729417217462,0.37741,2649.8,2649.7,8.14055461]
[1729417218470,0.37741,2649.8,2649.7,4.16829562]
[1729417218768,0.76531,2649.8,2649.7,1.77382949]
[1729417223175,0.76531,2649.8,2649.7,2.19172949]
[1729417223765,0.76531,2649.8,2649.7,2.19214301]
[1729417224575,0.76531,2649.8,2649.7,1.40554489]
[1729417224773,0.37741,2649.8,2649.7,1.40554489]
[1729417225075,0.37741,2649.8,2649.7,3.17973067]
[1729417226070,0.37741,2649.8,2649.7,2.19208578]
[1729417226471,0.37741,2649.8,2649.7,3.67355312]
[1729417227078,0.37741,2649.8,2649.7,2.19208578]
[1729417228584,0.37741,2649.8,2649.7,3.67362066]
[1729417228974,0.37741,2649.8,2649.7,2.19215332]
[1729417229878,0.37741,2649.8,2649.7,3.67362066]
[1729417232081,0.37741,2649.8,2649.7,3.17990321]
[1729417232485,0.37741,2649.8,2649.7,4.16701945]
[1729417232881,0.37741,2649.8,2649.7,7.71604985]
[1729417233185,0.37741,2649.8,2649.7,4.16701945]
[1729417233384,0.37741,2649.8,2649.7,7.71590727]
[1729417233575,0.37741,2649.8,2649.7,5.94179531]
[1729417233775,0.37741,2649.8,2649.7,7.7163099]
[1729417235472,0.37741,2649.8,2649.7,7.7169331]
[1729417236785,0.37741,2649.8,2649.7,5.74206697]
[1729417238691,0.37741,2649.8,2649.7,5.7433765]
[1729417241387,0.37741,2649.8,2649.7,8.19719929]
[1729417243782,0.37741,2649.8,2649.7,8.19983515]
[1729417244577,0.37741,2649.8,2649.7,7.78193515]
[1729417244781,0.37741,2649.8,2649.7,3.75403971]
[1729417244988,0.37741,2649.8,2649.7,1.77603745]
[1729417245694,3.58521,2649.8,2649.7,1.77603745]
[1729417246079,3.58521,2649.8,2649.7,7.71308611]
[1729417247285,3.58521,2649.8,2649.7,4.15943971]
[1729417247485,3.58521,2649.8,2649.7,7.71284227]
[1729417247793,3.58521,2649.8,2649.7,1.3944581]
[1729417248386,0.37741,2649.8,2649.7,1.3944581]
[1729417251083,0.37741,2649.8,2649.7,0.4054]
[1729417251289,0.37741,2649.8,2649.7,1.3944581]
[1729417254696,0.37741,2649.8,2649.7,7.7678674]
[1729417258491,0.37741,2649.8,2649.7,5.97304569]
[1729417258698,0.37741,2649.8,2649.7,7.76829514]
[1729417261700,0.37741,2649.8,2649.7,5.79029288]
[1729417263200,0.37741,2649.8,2649.7,7.76806443]
[1729417265299,0.37741,2649.8,2649.7,5.79029288]
[1729417265599,0.37741,2649.8,2649.7,7.7680774]
[1729417267102,0.37741,2649.8,2649.7,7.76847252]
[1729417269790,0.37741,2649.8,2649.7,1.39433469]
[1729417269995,0.37741,2649.8,2649.7,0.4054]
[1729417274302,0.37741,2649.8,2649.7,1.39433469]
[1729417277001,0.37741,2649.8,2649.7,7.76854104]
[1729417282804,0.37741,2649.8,2649.7,7.76924169]
[1729417284910,0.37741,2649.8,2649.7,0.4054]
[1729417285109,0.37741,2649.8,2649.7,1.39454286]
[1729417286711,0.37741,2649.8,2649.7,0.4054]
[1729417288013,3.58521,2649.8,2649.7,1.39454286]
[1729417289815,0.37741,2649.8,2649.7,1.39454286]
[1729417290015,3.58521,2649.8,2649.7,1.39454286]
[1729417291016,0.37741,2649.8,2649.7,1.39454286]
[1729417292219,0.37741,2649.8,2649.7,7.77236264]
[1729417294310,3.58521,2649.8,2649.7,7.77236264]
[1729417295616,0.37741,2649.8,2649.7,2.38369115]
[1729417295818,0.37741,2649.8,2649.7,7.7720022]
[1729417296013,3.58521,2649.8,2649.7,7.7720022]
[1729417296819,3.58521,2649.8,2649.7,7.77183845]
[1729417297317,3.58521,2649.8,2649.7,8.24737009]
[1729417297518,3.01877239,2649.8,2649.7,8.24737009]
[1729417297719,3.39618239,2649.8,2649.7,8.24737009]
[1729417298525,0.37741,2649.8,2649.7,8.24737009]
[1729417300119,0.37741,2649.8,2649.7,3.68573449]
[1729417301619,0.37741,2649.8,2649.7,3.68319786]
[1729417306615,0.37741,2649.8,2649.7,1.88968539]
[1729417306820,0.37741,2649.8,2649.7,3.68288668]
[1729417307025,0.37741,2649.8,2649.7,8.23879708]
[1729417308718,0.37741,2649.8,2649.7,5.78497429]
[1729417310630,0.37741,2649.8,2649.7,8.2577194]
[1729417310928,0.37741,2649.8,2649.7,5.78497429]
[1729417311223,0.37741,2649.8,2649.7,8.25780647]
[1729417311624,0.37741,2649.8,2649.7,8.2565061]
[1729417316731,0.37741,2649.8,2649.7,8.25566604]
[1729417320829,0.37741,2649.8,2649.7,2.87823218]
[1729417321035,0.37741,2649.8,2649.7,8.25532446]
[1729417322026,0.37741,2649.8,2649.7,3.68100106]
[1729417325036,0.37741,2649.8,2649.7,3.68068223]
[1729417330037,0.37741,2649.8,2649.7,3.68050461]
[1729417330241,0.37741,2649.8,2649.7,8.25380845]
[1729417334932,0.37741,2649.8,2649.7,2.87823218]
[1729417335134,0.37741,2649.8,2649.7,8.25302484]
[1729417336439,0.37738,2650.0,2649.7,9.67179393]
[1729417336645,0.37738,2650.0,2649.8,8.66925044]
[1729417336839,0.37738,2650.0,2649.9,7.84565044]
[1729417337140,0.37738,2650.0,2649.9,0.98836425]
[1729417343448,0.77548,2650.0,2649.9,0.98836425]
[1729417345251,0.77547,2650.0,2649.9,5.37578625]
[1729417349243,0.77547,2650.0,2649.9,7.35313576]
[1729417349952,0.77547,2650.0,2649.9,3.76946335]
[1729417351852,0.77547,2650.0,2649.9,7.3537483]
[1729417353862,0.77547,2650.0,2649.9,3.76946335]
[1729417354950,0.77547,2650.0,2649.9,3.76967487]
[1729417355952,0.77547,2650.0,2649.9,3.76965114]
[1729417356654,3.98327,2650.0,2649.9,3.76965114]
[1729417357251,7.75687,2650.0,2649.9,1.79230163]
[1729417357552,7.75687,2650.0,2649.9,3.27589294]
[1729417359259,3.98327,2650.0,2649.9,3.27589294]
[1729417359559,7.75687,2650.0,2649.9,3.27589294]
[1729417359759,3.98327,2650.0,2649.9,3.27589294]
[1729417359949,7.75687,2650.0,2649.9,3.27603701]
[1729417360351,7.3795,2650.0,2649.7,0.98888033]
[1729417360550,0.37742,2649.7,2649.6,0.98888033]
[1729417360852,0.37742,2649.7,2649.6,2.78125219]
[1729417361251,0.37742,2649.7,2649.6,0.98888033]
[1729417361457,0.37742,2649.7,2649.6,3.2758394]
[1729417361657,0.37742,2649.7,2649.6,3.6993394]
[1729417367252,3.2078,2650.0,2649.6,8.27051968]
[1729417367454,3.2078,2650.0,2649.9,1.48296012]
[1729417367652,3.2078,2650.0,2649.9,3.27520821]
[1729417367962,3.58517,2650.0,2649.9,3.70080821]
[1729417369867,3.58517,2650.0,2649.9,2.21581793]
[1729417372767,3.58517,2650.0,2649.9,3.69869099]
[1729417373567,3.58517,2650.0,2649.9,2.21581793]
[1729417373770,3.58517,2650.0,2649.9,3.6986682]
[1729417374458,3.58517,2650.0,2649.9,2.21581793]
[1729417374965,3.58517,2650.0,2649.9,2.21584416]
[1729417375266,3.58517,2650.0,2649.9,1.90846183]
[1729417375461,0.37737,2650.0,2649.9,0.4256]
[1729417377370,3.58517,2650.0,2649.9,0.4256]
[1729417378171,0.37737,2650.0,2649.9,0.4256]
[1729417380672,3.58517,2650.0,2649.9,0.4256]
[1729417381080,3.2078,2650.0,2649.7,0.98857937]
[1729417381380,0.3774,2649.8,2649.7,0.98857937]
[1729417381573,0.37742,2649.7,2649.6,1.40117937]
[1729417381771,4.40762,2649.7,2649.6,1.40117937]
[1729417382166,4.40762,2649.7,2649.6,0.4126]
[1729417382370,4.40762,2649.7,2649.6,4.18039285]
[1729417383076,4.40762,2649.7,2649.6,7.76113752]
[1729417383267,4.40762,2649.7,2649.6,7.76109278]